Cogmind - Beta 16 @@@ ROGUE MODE // 2025.11.08 @ 01:41:24 Player: Amphouse Result: Destroyed by 23-V8D(R) with Subdweller Laser Performance ------------- Evolutions (0) 0 Regions Visited (2) 400 Robots Destroyed (22) 110 Value Destroyed (716) 716 Prototype IDs (12) 240 Alien Tech Used (0) 0 Bonus (0) 0 TOTAL SCORE: 1466 Bonus ------- None Cogmind --------- Core Integrity 0/250 Matter 300/300 Energy 250/250 System Corruption 0% Temperature Cool (6) Movement Treading (160) Location -10/Subcaves Parts ------- > --- POWER (1) -------- Ion Engine > --- PROPULSION (2) --- Light Treads Spiked Treads > --- UTILITY (2) ------ Scrap Shield > --- WEAPON (2) ------- Ripper Makeshift Sword > --- INVENTORY (5) ---- Subdweller Monowheel Large Storage Unit Gun Armor Riot Gun Riot Gun Peak State ------------ > --- POWER ------------ Light Nuclear Core > --- PROPULSION ------- Light Treads Spiked Treads > --- UTILITY ---------- Scrap Shield > --- WEAPON ----------- Heavy Battle Rifle Makeshift Sword > --- INVENTORY -------- Ion Engine Subdweller Monowheel Large Storage Unit Riot Gun Riot Gun [Rating: 19] Favorites ----------- Power Light Nuclear Core Engine Ion Engine Power Core Light Nuclear Core Propulsion Aluminum Leg Treads Light Treads Leg Aluminum Leg Utility Small Storage Unit Device Seismic Detector Storage Small Storage Unit Protection Scrap Shield Weapon Makeshift Sword Energy Gun Medium Laser Ballistic Gun Heavy Battle Rifle Special Weapon Mining Laser Slashing Weapon Makeshift Sword Build | -11 -10 -10 ------- Run | Yrd Mat Sub Slots Evolved . | . . . Power . | . . . Propulsion . | . . . Utility . | . . . Weapon . | . . . Parts Attached 30 | 7 14 9 Power 4 | 1 2 1 Engine 3 | 1 1 1 Core 1 | . 1 . Reactor . | . . . Propulsion 11 | 2 6 3 Treads 3 | . . 3 Leg 8 | 2 6 . Wheel . | . . . Hover . | . . . Flight . | . . . Utility 5 | 2 2 1 Device 3 | 1 2 . Storage 1 | 1 . . Processor . | . . . Hackware . | . . . Protection 1 | . . 1 Artifact . | . . . Weapon 10 | 2 4 4 Energy Gun 4 | 2 1 1 Energy Cannon . | . . . Ballistic Gun 3 | . 2 1 Ballistic Cannon . | . . . Launcher . | . . . Special Weapon 1 | . 1 . Impact Weapon . | . . . Slashing Weapon 2 | . . 2 Piercing Weapon . | . . . Special Melee Weapon . | . . . Unidentified Prototypes . | . . . Parts Lost 8 | . 6 2 Power 1 | . 1 . Propulsion 4 | . 2 2 Utility 1 | . 1 . Weapon 2 | . 2 . Highest Loss Streak 5 | . 5 2 To Critical Strikes 1 | . . 1 Average Backups 6 | 3 7 5 Power . | . . . Propulsion 1 | 1 2 1 Utility 1 | . 2 1 Weapon 1 | 1 1 2 Tool/Special . | . . . Unused Backups 11 | . 1 10 Power . | . . . Propulsion 3 | . . 3 Utility 3 | . 1 2 Weapon 5 | . . 5 Tool/Special . | . . . Average Slot Usage (%) 92 | . 98 89 Engine 5 | . 3 5 Core 8 | . 9 8 Treads 14 | . . 20 Leg 13 | . 27 7 Device 6 | . 13 3 Storage 7 | . 14 4 Protection 6 | . . 9 Energy Gun 9 | . 23 4 Ballistic Gun 6 | . 2 7 Slashing Weapon 11 | . . 15 Peak Build Rating 19 | 7 9 19 Average Rating 13 | 6 8 15 On Entrance 5 | . 7 9 Avg Prop Armor Cover (%) . | . . . Naked Turns . | . . . Heaviest Build 29 | 15 15 29 Greatest Support 40 | 20 20 40 Greatest Overweight (x) 1 | . 1 . Average Overweight (x) . | . . . Largest Inventory Capacity 8 | 8 8 8 Average Capacity 6 | 7 8 5 Most Carried 8 | 6 8 8 Average Carried 6 | 4 7 5 Final Capacity 8 | 8 8 5 Final Carried 8 | 4 8 5 Class Distribution -------------------- 61% | Mutant 38% | Scavenger-Mutant Dominant Class ---------------- Scavenger-Mutant | -10/Materials Mutant | -10/Subcaves Resources | -11 -10 -10 ----------- Run | Yrd Mat Sub Matter Collected 697 | 270 277 150 Remotely . | . . . Salvage Created 893 | 121 337 435 Parts 46 | 6 17 23 Haulers Intercepted . | . . . Recyclers Shooed . | . . . Parts Field Recycled . | . . . Retrieved Matter . | . . . Parts Self-Destructed 6 | . . 6 Prevented . | . . . Parts Restored . | . . . Kills | -11 -10 -10 ------- Run | Yrd Mat Sub Combat Hostiles Destroyed 17 | . 7 10 Melee 10 | . . 10 Guns 5 | . 5 . Classes Destroyed 6 | 2 3 1 Tunneler 2 | 2 . . Recycler 1 | 1 . . Operator 1 | . 1 . Watcher 1 | . 1 . Grunt 7 | . 7 . Subdweller 10 | . . 10 Best Kill Streak 4 | 2 4 2 Combat Bots Only 4 | . 4 2 Max Kills in Single Turn 1 | 1 1 1 Gunslinging . | . . . Exploded . | . . . Melee 1 | . . 1 Uniques/NPCs Destroyed . | . . . Combat | -11 -10 -10 -------- Run | Yrd Mat Sub Hostile Shots Fired 135 | . 74 61 Missed 26 | . 11 15 Hits 109 | . 63 46 Projectile 109 | . 63 46 Critical Strikes 2 | . 1 1 Damage Taken 1699 | . 797 902 Core 258 | . 100 158 Absorbed by Shields . | . . . Core Remaining (%) 100 | 100 . . Volleys Fired 80 | 7 58 15 Largest 2 | 2 2 1 Hottest 100 | 100 100 33 Shots Fired 128 | 14 99 15 Gun 112 | 14 83 15 Cannon . | . . . Launcher . | . . . Special 16 | . 16 . Kinetic 36 | . 21 15 Thermal 92 | 14 78 . Explosive . | . . . Electromagnetic . | . . . Robot Hit Streak 13 | 9 8 13 Robot Miss Streak 4 | 1 4 1 Penetration Max . | . . . Secondary Targets 2 | . 2 . Max Gunslinging Chain 1 | . 1 . Shots Hit Robots 114 | 12 54 48 Core Hits 37 | 4 22 11 Critical Kills . | . . . Critical Parts Destroyed 1 | . . 1 Critical Strikes 4 | . 3 1 Burn 3 | . 3 . Destroy 1 | . . 1 Melee Attacks 77 | . . 77 Impact . | . . . Slashing 77 | . . 77 Piercing . | . . . Sneak Attacks 3 | . . 3 Combat Hostiles 1 | . . 1 Follow-up Attacks . | . . . Damage Inflicted 2361 | 173 635 1553 Guns 983 | 173 620 190 Cannons . | . . . Explosions . | . . . Melee 1363 | . . 1363 Ramming 15 | . 15 . Kinetic 330 | . 140 190 Thermal 653 | 173 480 . Explosive . | . . . Electromagnetic . | . . . Impact . | . . . Slashing 1363 | . . 1363 Piercing . | . . . Highest Corruption . | . . . Average Corruption . | . . . Corruption Purged . | . . . Corruption Blocked . | . . . Overload Shots . | . . . Overflow Damage 37 | . . 37 Projectiles . | . . . Explosions . | . . . Melee 37 | . . 37 Knockbacks . | . . . Impact . | . . . Kinetic . | . . . Secondary . | . . . Self-Inflicted Damage . | . . . Shots . | . . . Rammed . | . . . Targets Rammed 4 | . 4 . Kicked 4 | . 4 . Crushed . | . . . Highest Temperature 372 | 117 372 . Average Temperature 124 | 48 135 . Received Heat Transfer 651 | . 465 186 Effects 6 | . 6 . Interference 6 | . 6 . Siege Activations . | . . . Martial Activations . | . . . Shielding Activations . | . . . Robots Disrupted . | . . . Combat Hostiles . | . . . Robots Corrupted . | . . . Combat Hostiles . | . . . Parts Fried . | . . . Impact Corruptions . | . . . Robots Melted 2 | . 2 . Combat Hostiles 2 | . 2 . Parts Melted 5 | 1 4 . Heat Transferred 2041 | 518 1523 . Parts Sabotaged . | . . . Parts Stolen . | . . . Parts Stripped . | . . . Power Chain Reactions . | . . . Alert | -11 -10 -10 ------- Run | Yrd Mat Sub Maximum Alert Level . | . . . Low Security (%) 100 | 100 100 . Level 1 . | . . . Level 2 . | . . . Level 3 . | . . . Level 4 . | . . . Level 5 . | . . . High Security . | . . . Max Security . | . . . Peak Influence 80 | 5 80 . Initial . | . . . Average 6 | . 8 . Influence Increases 247 | 15 232 . Destroy 0b10 Robot/C 140 | . 140 . Destroy 0b10 Robot/NC 25 | 15 10 . Destroy Leader 22 | . 22 . Successful Hack 28 | . 28 . Select Force Hacks 30 | . 30 . Destroy Structure 2 | . 2 . Influence Decreases 247 | 15 163 69 Entered New Map 34 | . . 34 Time Decay 173 | 15 123 35 Lost Part 40 | . 40 . Squads Dispatched 2 | . 2 . Investigation 1 | . 1 . Extermination . | . . . Reinforcement 1 | . 1 . Assault . | . . . Garrison . | . . . Intercept . | . . . Searches Triggered . | . . . Construction Impeded . | . . . Haulers Reinforced . | . . . Active Scanning Responses . | . . . Cargo Convoy Interrupts . | . . . Stealth | -11 -10 -10 --------- Run | Yrd Mat Sub Distress Signals 1 | . 1 . Communications Jammed . | . . . Distress Signals . | . . . Times Spotted 31 | . 19 12 Peak Tracking Total 5 | . 5 2 Tactical Retreats 2 | . . 2 Traps | -11 -10 -10 ------- Run | Yrd Mat Sub Traps Triggered 1 | . 1 . Indirectly . | . . . Trap Hack Attempts . | . . . Triggered . | . . . Disarmed . | . . . Reprogrammed . | . . . Reused . | . . . Traps Extracted . | . . . Installed . | . . . Triggered . | . . . Machines | -11 -10 -10 ---------- Run | Yrd Mat Sub Machines Disabled 1 | . . 1 Max in Single Turn 1 | . . 1 Machines Repaired . | . . . Machines Dismantled . | . . . Machines Sabotaged . | . . . Overloaded Fab Kills . | . . . Hacking | -11 -10 -10 --------- Run | Yrd Mat Sub Machines Accessed 7 | . 5 2 Terminals 4 | . 4 . Fabricators . | . . . Repair Stations . | . . . Recycling Units 1 | . 1 . Scanalyzers . | . . . Garrison Access . | . . . Total Hacks 19 | . 11 8 Successful 16 | . 8 8 Failed 3 | . 3 . Catastrophic . | . . . Database Lockouts . | . . . Manual 6 | . 6 . Terminals 9 | . 9 . Fabricators . | . . . Repair Stations . | . . . Recycling Units 2 | . 2 . Scanalyzers . | . . . Garrison Access . | . . . Terminal Hacks 10 | . 2 8 Record 7 | . . 7 Robot Analysis 1 | . 1 . Hauler Manifests 1 | . 1 . Proto ID Catalog 1 | . . 1 Fabricator Hacks . | . . . Repair Station Hacks . | . . . Recycling Unit Hacks 1 | . 1 . Report Inventory 1 | . 1 . Scanalyzer . | . . . Garrison Access Hacks . | . . . Unauthorized Hacks 5 | . 5 . Terminals 4 | . 4 . Track 1 | . 1 . Botnet 2 | . 2 . Operators 1 | . 1 . Fabricators . | . . . Repair Stations . | . . . Recycling Units 1 | . 1 . Tunnel 1 | . 1 . Scanalyzers . | . . . Garrison Access . | . . . Data Cores Recovered 1 | . 1 . Used . | . . . Hacking Detections 4 | . 4 . Full Trace Events . | . . . Feedback Events . | . . . Feedback Blocked . | . . . Robot Schematics Acquired . | . . . Robots Built . | . . . Authchips . | . . . Time . | . . . Total Robot Build Rating . | . . . Part Schematics Acquired . | . . . Parts Built . | . . . Authchips . | . . . Time . | . . . Total Part Build Rating . | . . . Part Studies Acquired . | . . . Parts Repaired . | . . . Time . | . . . Parts Recycled . | . . . Recycled Matter . | . . . Retrieved Matter . | . . . Retrieved Components . | . . . Parts Scanalyzed . | . . . Part Schematics Acquired . | . . . Parts Damaged . | . . . Bothacking | -11 -10 -10 ------------ Run | Yrd Mat Sub Used RIF Installer . | . . . Robots Hacked . | . . . Non-combat . | . . . Combat . | . . . Robot Hacks Applied . | . . . Relay Couplers Released . | . . . Fabnet Peak Effective % . | . . . Robots Rewired . | . . . Allies Hacked . | . . . Hacks Repelled . | . . . Allies | -11 -10 -10 -------- Run | Yrd Mat Sub Total Allies . | . . . Largest Group . | . . . Highest-Rated Group . | . . . Highest-Rated Ally . | . . . Total Orders . | . . . Ally Attacks . | . . . Total Damage . | . . . Kills . | . . . Allies Corrupted . | . . . Allies Melted . | . . . Intel | -11 -10 -10 ------- Run | Yrd Mat Sub Active Infowar (turns) 1767 | 147 901 719 Seismic 1767 | 147 901 719 Robot Analysis Total 1 | . 1 . Derelict Logs Recovered 2 | . . 2 Drone Launches . | . . . Drone Recoveries . | . . . Exploration | -11 -10 -10 ------------- Run | Yrd Mat Sub Turns Passed 3881 | 227 1100 2554 Spaces Moved 2374 | 160 658 1556 Core 10 | 10 . . Treads 1024 | . . 1024 Legs 1340 | 150 658 532 Wheels . | . . . Hover . | . . . Flight . | . . . Fastest Speed 50 | 50 120 120 Average Speed 136 | 115 120 146 Slowest Speed 190 | 120 190 160 Overloaded Moves . | . . . Propulsion Burnouts . | . . . Robots Hopped . | . . . Potential Cave-ins . | . . . Cave-ins Triggered . | . . . Exploration Rate (%) 51 | 6 66 81 Regions Visited 2 Branch Regions 1 Pre-discovered Areas 1 | . 1 . Known Exits Taken . | . . . Unknown Exits Taken 2 | 1 1 . Scrap Searched 2 | . . 2 Spaces Dug 4 | . 2 2 Terrain Destroyed 7 | . 4 3 Melee 2 | . . 2 Projectile 5 | . 4 1 AOE . | . . . Terrain Rammed . | . . . Walls Destroyed . | . . . Machines Disabled . | . . . Actions | -11 -10 -10 --------- Run | Yrd Mat Sub Total 2774 | 185 838 1751 Wait 156 | 6 84 66 Move 2372 | 159 657 1556 Hop . | . . . Pick Up 26 | 6 10 10 Fast Attach 13 | 5 5 3 Attach 10 | 2 5 3 Detach . | . . . Swap 13 | . 9 4 Drop 22 | . 6 16 Fire 80 | 7 58 15 Melee 73 | . . 73 Ram . | . . . Kick 4 | . 4 . Crush . | . . . Escape Stasis . | . . . Rewire . | . . . Trap . | . . . Miscellaneous 5 | . . 5 Route ------- -11/Scrapyard -10/Materials (discovered 5 exits: [*Mat x3] / [*Min] / *Sub) -10/Subcaves (discovered 2 exits: [*Mat] / Rec) History --------- Turn | Location | Event 9 | -11/Scrapyard | Discovered new exit (range 14) 228 | -11/Scrapyard | Entered Materials 305 | -10/Materials | Build established: Mutant 438 | -10/Materials | Discovered new exit (range 14) 563 | -10/Materials | Lost 5 parts (1p2n1u1w) 662 | -10/Materials | Discovered new exit (range 7) 853 | -10/Materials | Build established: Scavenger-Mutant 995 | -10/Materials | Discovered new exit (range 15) 1139 | -10/Materials | Discovered new exit (range 14) 1272 | -10/Materials | Discovered new exit (range 10) 1328 | -10/Materials | Entered Subcaves 1357 | -10/Subcaves | Learned 2 Materials zone layouts 1518 | -10/Subcaves | Curiously followed by a Cobbler waking with a query about "LVR3C" 1687 | -10/Subcaves | Shifting Twisted Machinery released Barrage Gun 1945 | -10/Subcaves | Disturbed a concealed Subdweller 1994 | -10/Subcaves | Visited Clippyterm 1998 | -10/Subcaves | Learned Factory garrison access intel 2019 | -10/Subcaves | Ambushed by Subdwellers from Twisted Machinery 2022 | -10/Subcaves | Core integrity fell below 50% 2332 | -10/Subcaves | Build established: Mutant 2338 | -10/Subcaves | Shifting Twisted Machinery released Sub. Power Source 2341 | -10/Subcaves | Shifting Twisted Machinery released Riot Gun 2630 | -10/Subcaves | Discovered new exit (range 6) 2654 | -10/Subcaves | Identified exit to Recycling 2781 | -10/Subcaves | Visited 4L-MR0's lab 2796 | -10/Subcaves | Found Gun Armor 2868 | -10/Subcaves | Core integrity fell below 20% 3198 | -10/Subcaves | A swath of the cavern ceiling suddenly collapsed 3882 | -10/Subcaves | Destroyed by 23-V8D(R) with Subdweller Laser Last Messages --------------- 27-A1E(O) puts together Piercing Trap. 27-A1E(O) collects matter. Sneak attack on 27-A1E(O). Destroyed Wheel. Dropped Hvy. Battle Rifle. Acquired Ripper. A swath of the cavern ceiling suddenly collapses. Acquired 9 matter. Acquired 1 matter. GQ-VT1(R) destroyed. 27-A1E(O) collects matter. 27-A1E(O) puts together Flamer. 27-A1E(O) collects matter. 27-A1E(O) puts together Sub. Monowheel. 27-A1E(O) collects matter. 27-A1E(O) puts together Spk. Treads. Dropped Spk. Treads. 27-A1E(O) puts together Sub. Power Source. NJ-VP4(R) destroyed. Acquired 10 matter. Map ----- +----------------------------------------------------+ | ???????????????????????????????????????????# | | ??????????????????????????????????????????# # # | | ??????????????????????????????????????????# ## | | ??????????????????????????????????????????# ??# | | ????????????????????????????????????????? ???## | | ???????????????????????????????????????? ????## | | ??????????????????????????????????????# # ????## | | ??????????????????????????????????????#?##?????# | | ???????????????????????????????????????????????# | | ????????????????????????????? ?????????????????## | | ????????????????????????????? ????????????????## | | ????????????????????????????? #????????????????# | | ????????????????????????????# ## #????????????? | | ??????????????????????????## ???????????? | | ??????????????????????????# #???????????? | | ????????????????????????### #????????###? | | ????????????????????????# #???????## ## | | ???????????????????????## #???????# | | ???????????????????????# #??????## | | ???????????????????????# ????#### | | ?????????????????????#### ???#### | | ????????????????????## ## #????# # | | ???????????????????## ## #????# # | | ??????????????????## ### #????## ## | | ?????????????????## ## #?????## ### | | ????????????????## !@= #?????## ### | | ????????????????# & ####### ## | | ????????????????## O R ## | | ????????????????## | | ???????????###?## #### | | ???????????# ### #??# | | ???????????## #??#### | | ???????????# ## ## ###?????## | | ???????????##### # #####????????## ## | | ???????????????### #?????????????###### ## | | ?????????????????## ##??????????????????## #? | | ??????????????????# #????????????????????##### #? | | ??????????????????###????????????????????????####? | | ?????????????????????????????????????????????????? | | ?????????????????????????????????????????????????? | | ?????????????????????????????????????????????????? | | ?????????????????????????????????????????????????? | | ?????????????????????????????????????????????????? | | ?????????????????????????????????????????????????? | | ?????????????????????????????????????????????????? | | ?????????????????????????????????????????????????? | | ?????????????????????????????????????????????????? | | ?????????????????????????????????????????????????? | | ?????????????????????????????????????????????????? | | ?????????????????????????????????????????????????? | +----------------------------------------------------+ Best States ------------- Heat Dissipation 35 Energy Generation 14 Energy Capacity 250 Matter Stores 300 Matter Capacity 300 Sight Range 16 Terrain Scan Density 10 Armor Coverage 800 Evasion (%) 55 Recoil Reduction 2 Item Schematics ----------------- None Robot Schematics ------------------ None Fabricated ------------ Nothing Repaired ---------- Nothing Studied --------- None Alien Tech Used ----------------- None Achievements -------------- Mistaken Identity Challenges ------------ None Game ------ Seed SpacefoldMasterStreamer Manual? 0 Play Time 00:52:37 Cumulative 210.3 hours Start 2025.11.08 @ 00:53:12 End 2025.11.08 @ 01:41:24 Sessions 1 Manual Loads 0 Difficulty Rogue Special Mode None Game No. 82 Rogue 82 Adventurer 0 Explorer 0 Win Type - Total 14 Types 11/1/2/0/0/0/0/0/0/0 Lore% 59 Gallery% 67 Achievement% 35 Wizard Run 0 Options --------- Layout 0 ASCII 0 Keyboard 0 Movement Numpad Keybinds 0 Fullscreen 2 Font 18/X11 Map View 76x50 Zoom Use 0% Tactical HUD 1 Map Filters NONE Filters NONE Steam 1 RUN: 8cdfe819-eb2a-4ceb-9aac-8ed5bd673c88